Cogmind - Beta 16.1 @@@ ROGUE MODE // 2026.03.19 @ 02:55:19 Player: Cica Result: Destroyed by Y-45 Defender with Beam Rifle Performance ------------- Evolutions (1) 500 Regions Visited (3) 600 Robots Destroyed (26) 130 Value Destroyed (548) 548 Prototype IDs (2) 40 Alien Tech Used (0) 0 Bonus (0) 0 TOTAL SCORE: 1818 Bonus ------- None Cogmind --------- Core Integrity 0/400 Matter 274/300 Energy 125/125 System Corruption 0% Temperature Cool (57) Movement Core (650) Ox12 Location -9/Materials Parts ------- > --- POWER (1) -------- Light Ion Engine > --- PROPULSION (4) --- (None) > --- UTILITY (2) ------ Large Storage Unit Medium Armor Plating > --- WEAPON (2) ------- Particle Cannon Rocket Launcher > --- INVENTORY (15) --- Heat Sink Medium Storage Unit Tractor Beam EM Shotgun Small Laser Beam Rifle Shotgun Light Cannon Mining Laser Mining Laser Welding Torch Peak State ------------ > --- POWER ------------ Light Ion Engine > --- PROPULSION ------- Aluminum Leg > --- UTILITY ---------- Large Storage Unit Medium Armor Plating > --- WEAPON ----------- Particle Cannon Shotgun > --- INVENTORY -------- Heat Sink Medium Storage Unit Tractor Beam EM Shotgun Small Laser Beam Rifle Light Cannon Rocket Launcher Mining Laser Mining Laser Welding Torch [Rating: 10] Favorites ----------- Power Ion Engine Engine Ion Engine Propulsion Aluminum Leg Leg Aluminum Leg Utility Medium Storage Unit Device Sensor Array Storage Medium Storage Unit Protection Medium Armor Plating Weapon Light Cannon Energy Gun Small Laser Energy Cannon Particle Cannon Ballistic Gun Shotgun Ballistic Cannon Light Cannon Launcher Rocket Launcher Build | -11 -10 -10 -9 ------- Run | Yrd Mat Min Mat Slots Evolved 2 | . . . 2 Power . | . . . . Propulsion 2 | . . . 2 Utility . | . . . . Weapon . | . . . . Parts Attached 23 | 5 4 . 14 Power 3 | 1 1 . 1 Engine 3 | 1 1 . 1 Core . | . . . . Reactor . | . . . . Propulsion 4 | 2 . . 2 Treads . | . . . . Leg 4 | 2 . . 2 Wheel . | . . . . Hover . | . . . . Flight . | . . . . Utility 5 | . 1 . 4 Device 2 | . . . 2 Storage 2 | . 1 . 1 Processor . | . . . . Hackware . | . . . . Protection 1 | . . . 1 Artifact . | . . . . Weapon 11 | 2 2 . 7 Energy Gun 5 | 2 . . 3 Energy Cannon 1 | . . . 1 Ballistic Gun 1 | . . . 1 Ballistic Cannon 2 | . 2 . . Launcher 2 | . . . 2 Special Weapon . | . . . . Impact Weapon . | . . . . Slashing Weapon . | . . . . Piercing Weapon . | . . . . Special Melee Weapon . | . . . . Unidentified Prototypes . | . . . . Parts Lost 12 | . . . 12 Power 2 | . . . 2 Propulsion 4 | . . . 4 Utility 1 | . . . 1 Weapon 5 | . . . 5 Highest Loss Streak 8 | . . . 8 To Critical Strikes . | . . . . Average Backups 8 | 2 4 8 10 Power . | . 1 1 . Propulsion . | . . . . Utility 1 | . 1 1 1 Weapon 5 | . 2 5 7 Tool/Special . | . . . . Unused Backups 6 | . . . 6 Power . | . . . . Propulsion . | . . . . Utility 1 | . . . 1 Weapon 4 | . . . 4 Tool/Special 1 | . . . 1 Average Slot Usage (%) 75 | . 81 85 69 Engine 10 | . 14 14 7 Leg 23 | . 28 28 19 Device 5 | . . . 9 Storage 11 | . 10 14 11 Energy Gun 4 | . 4 . 7 Ballistic Cannon 17 | . 23 28 10 Launcher 1 | . . . 3 Peak Build Rating 10 | 5 6 6 10 Average Rating 6 | 3 5 6 7 On Entrance 4 | . 5 6 6 Avg Prop Armor Cover (%) . | . . . . Naked Turns . | . . . . Heaviest Build 38 | 7 21 21 38 Greatest Support 20 | 20 20 20 20 Greatest Overweight (x) 12 | . 1 1 12 Average Overweight (x) . | . . 1 1 Largest Inventory Capacity 15 | 5 10 10 15 Average Capacity 11 | 5 8 10 14 Most Carried 13 | 4 8 8 13 Average Carried 8 | 2 5 8 10 Final Capacity 15 | 5 10 10 15 Final Carried 11 | 3 8 8 11 Class Distribution -------------------- 100% | Mutant Dominant Class ---------------- Mutant | -10/Materials Mutant | -10/Mines Mutant | -9/Materials Resources | -11 -10 -10 -9 ----------- Run | Yrd Mat Min Mat Matter Collected 660 | 220 20 . 420 Remotely 172 | . . . 172 Salvage Created 701 | . 15 . 686 Parts 48 | . 1 . 47 Haulers Intercepted . | . . . . Recyclers Shooed 1 | . . . 1 Parts Field Recycled . | . . . . Retrieved Matter . | . . . . Parts Self-Destructed . | . . . . Prevented . | . . . . Parts Restored . | . . . . Kills | -11 -10 -10 -9 ------- Run | Yrd Mat Min Mat Combat Hostiles Destroyed 20 | . . . 20 Guns 12 | . . . 12 Cannons 6 | . . . 6 AOE 2 | . . . 2 Classes Destroyed 7 | . 1 . 6 Builder 1 | . . . 1 Recycler 1 | . . . 1 Watcher 4 | . 1 . 3 Swarmer 11 | . . . 11 Grunt 3 | . . . 3 Brawler 1 | . . . 1 Sentry 5 | . . . 5 Best Kill Streak 12 | . 1 . 12 Combat Bots Only 6 | . . . 6 Max Kills in Single Turn 2 | . 1 . 2 Gunslinging . | . . . . Exploded 2 | . . . 2 Melee . | . . . . Uniques/NPCs Destroyed . | . . . . Combat | -11 -10 -10 -9 -------- Run | Yrd Mat Min Mat Hostile Shots Fired 230 | . . . 230 Missed 71 | . . . 71 Hits 159 | . . . 159 Projectile 159 | . . . 159 Critical Strikes 3 | . . . 3 Damage Taken 1532 | . . . 1532 Core 402 | . . . 402 Absorbed by Shields . | . . . . Core Remaining (%) 100 | 100 . 100 . Volleys Fired 75 | . 1 . 74 Largest 2 | . 2 . 2 Hottest 101 | . 60 . 101 Shots Fired 130 | . 2 . 128 Gun 81 | . . . 81 Cannon 42 | . 2 . 40 Launcher 7 | . . . 7 Special . | . . . . Kinetic 48 | . 2 . 46 Thermal 56 | . . . 56 Explosive 7 | . . . 7 Electromagnetic 19 | . . . 19 Robot Hit Streak 11 | . 2 . 11 Robot Miss Streak 4 | . . . 4 Penetration Max . | . . . . Secondary Targets 2 | . . . 2 Max Gunslinging Chain 1 | . . . 1 Shots Hit Robots 71 | . 2 . 69 Core Hits 36 | . 1 . 35 Critical Kills . | . . . . Critical Parts Destroyed . | . . . . Critical Strikes 5 | . 1 . 4 Burn 2 | . . . 2 Blast 2 | . 1 . 1 Corrupt 1 | . . . 1 Melee Attacks . | . . . . Impact . | . . . . Slashing . | . . . . Piercing . | . . . . Sneak Attacks . | . . . . Combat Hostiles . | . . . . Follow-up Attacks . | . . . . Damage Inflicted 1298 | . 35 . 1263 Guns 691 | . . . 691 Cannons 384 | . 35 . 349 Explosions 223 | . . . 223 Melee . | . . . . Ramming . | . . . . Kinetic 483 | . 35 . 448 Thermal 411 | . . . 411 Explosive 223 | . . . 223 Electromagnetic 181 | . . . 181 Impact . | . . . . Slashing . | . . . . Piercing . | . . . . Highest Corruption . | . . . . Average Corruption . | . . . . Corruption Purged . | . . . . Corruption Blocked . | . . . . Overload Shots . | . . . . Overflow Damage 11 | . . . 11 Projectiles . | . . . . Explosions 11 | . . . 11 Melee . | . . . . Knockbacks 2 | . . . 2 Impact . | . . . . Kinetic 2 | . . . 2 Secondary . | . . . . Self-Inflicted Damage . | . . . . Shots . | . . . . Rammed . | . . . . Targets Rammed . | . . . . Kicked . | . . . . Crushed . | . . . . Highest Temperature 80 | . . . 80 Average Temperature 24 | . . . 24 Received Heat Transfer 279 | . . . 279 Siege Activations . | . . . . Martial Activations . | . . . . Shielding Activations . | . . . . Robots Disrupted . | . . . . Combat Hostiles . | . . . . Robots Corrupted . | . . . . Combat Hostiles . | . . . . Parts Fried . | . . . . Impact Corruptions . | . . . . Robots Melted . | . . . . Combat Hostiles . | . . . . Parts Melted 2 | . . . 2 Heat Transferred 1203 | . . . 1203 Parts Sabotaged . | . . . . Parts Stolen . | . . . . Parts Stripped . | . . . . Power Chain Reactions . | . . . . Alert | -11 -10 -10 -9 ------- Run | Yrd Mat Min Mat Maximum Alert Level 1 | . . . 1 Low Security (%) 87 | 100 100 100 76 Level 1 12 | . . . 23 Level 2 . | . . . . Level 3 . | . . . . Level 4 . | . . . . Level 5 . | . . . . High Security . | . . . . Max Security . | . . . . Peak Influence 248 | . 11 . 248 Initial . | . . . . Average 46 | . . . 87 Influence Increases 600 | . 18 . 582 Destroy 0b10 Robot/C 400 | . . . 400 Destroy 0b10 Robot/NC 30 | . 5 . 25 Destroy Leader 108 | . 2 . 106 Successful Hack 11 | . 11 . . Destroy Structure 51 | . . . 51 Influence Decreases 370 | . 18 . 352 Time Decay 250 | . 18 . 232 Lost Part 120 | . . . 120 Squads Dispatched 1 | . . . 1 Investigation . | . . . . Extermination . | . . . . Reinforcement 1 | . . . 1 Assault . | . . . . Garrison . | . . . . Intercept . | . . . . Searches Triggered . | . . . . Construction Impeded . | . . . . Haulers Reinforced . | . . . . Active Scanning Responses . | . . . . Cargo Convoy Interrupts . | . . . . Stealth | -11 -10 -10 -9 --------- Run | Yrd Mat Min Mat Distress Signals 3 | . . . 3 Communications Jammed . | . . . . Distress Signals . | . . . . Times Spotted 30 | . 1 . 29 Peak Tracking Total 8 | . 1 . 8 Tactical Retreats . | . . . . Traps | -11 -10 -10 -9 ------- Run | Yrd Mat Min Mat Traps Triggered . | . . . . Indirectly . | . . . . Trap Hack Attempts . | . . . . Triggered . | . . . . Disarmed . | . . . . Reprogrammed . | . . . . Reused . | . . . . Traps Extracted . | . . . . Installed . | . . . . Triggered . | . . . . Machines | -11 -10 -10 -9 ---------- Run | Yrd Mat Min Mat Machines Disabled 1 | . . . 1 Max in Single Turn 1 | . . . 1 Machines Repaired . | . . . . Machines Dismantled . | . . . . Machines Sabotaged . | . . . . Overloaded Fab Kills . | . . . . Hacking | -11 -10 -10 -9 --------- Run | Yrd Mat Min Mat Machines Accessed 2 | . 2 . . Terminals 1 | . 1 . . Fabricators . | . . . . Repair Stations . | . . . . Recycling Units 1 | . 1 . . Scanalyzers . | . . . . Garrison Access . | . . . . Total Hacks 6 | . 6 . . Successful 6 | . 6 . . Failed . | . . . . Catastrophic . | . . . . Database Lockouts . | . . . . Manual . | . . . . Terminals 4 | . 4 . . Fabricators . | . . . . Repair Stations . | . . . . Recycling Units 2 | . 2 . . Scanalyzers . | . . . . Garrison Access . | . . . . Terminal Hacks 4 | . 4 . . Record 2 | . 2 . . Prototype ID Bank 1 | . 1 . . Emergency Access Points 1 | . 1 . . Fabricator Hacks . | . . . . Repair Station Hacks . | . . . . Recycling Unit Hacks 2 | . 2 . . Process 1 | . 1 . . Report Inventory 1 | . 1 . . Scanalyzer . | . . . . Garrison Access Hacks . | . . . . Unauthorized Hacks . | . . . . Terminals . | . . . . Fabricators . | . . . . Repair Stations . | . . . . Recycling Units . | . . . . Scanalyzers . | . . . . Garrison Access . | . . . . Data Cores Recovered . | . . . . Used . | . . . . Hacking Detections . | . . . . Full Trace Events . | . . . . Feedback Events . | . . . . Feedback Blocked . | . . . . Robot Schematics Acquired . | . . . . Robots Built . | . . . . Authchips . | . . . . Time . | . . . . Total Robot Build Rating . | . . . . Part Schematics Acquired . | . . . . Parts Built . | . . . . Authchips . | . . . . Time . | . . . . Total Part Build Rating . | . . . . Part Studies Acquired . | . . . . Parts Repaired . | . . . . Time . | . . . . Parts Recycled . | . . . . Recycled Matter 47 | . 47 . . Retrieved Matter . | . . . . Retrieved Components . | . . . . Parts Scanalyzed . | . . . . Part Schematics Acquired . | . . . . Parts Damaged . | . . . . Bothacking | -11 -10 -10 -9 ------------ Run | Yrd Mat Min Mat Used RIF Installer . | . . . . Robots Hacked . | . . . . Non-combat . | . . . . Combat . | . . . . Robot Hacks Applied . | . . . . Relay Couplers Released . | . . . . Fabnet Peak Effective % . | . . . . Robots Rewired . | . . . . Allies Hacked . | . . . . Hacks Repelled . | . . . . Allies | -11 -10 -10 -9 -------- Run | Yrd Mat Min Mat Total Allies . | . . . . Largest Group . | . . . . Highest-Rated Group . | . . . . Highest-Rated Ally . | . . . . Total Orders . | . . . . Ally Attacks . | . . . . Total Damage . | . . . . Kills . | . . . . Allies Corrupted . | . . . . Allies Melted . | . . . . Intel | -11 -10 -10 -9 ------- Run | Yrd Mat Min Mat Active Infowar (turns) 606 | . . . 606 Sensors 606 | . . . 606 Robot Analysis Total . | . . . . Derelict Logs Recovered . | . . . . Drone Launches . | . . . . Drone Recoveries . | . . . . Exploration | -11 -10 -10 -9 ------------- Run | Yrd Mat Min Mat Turns Passed 1847 | 63 296 513 975 Spaces Moved 807 | 47 161 241 358 Core 12 | 8 . . 4 Treads . | . . . . Legs 795 | 39 161 241 354 Wheels . | . . . . Hover . | . . . . Flight . | . . . . Fastest Speed 50 | 50 120 190 190 Average Speed 185 | 108 170 190 199 Slowest Speed 650 | 120 190 190 650 Overloaded Moves . | . . . . Propulsion Burnouts . | . . . . Robots Hopped . | . . . . Potential Cave-ins . | . . . . Cave-ins Triggered . | . . . . Exploration Rate (%) 33 | 3 33 57 41 Regions Visited 3 Branch Regions 1 Pre-discovered Areas . | . . . . Known Exits Taken . | . . . . Unknown Exits Taken 3 | 1 1 1 . Scrap Searched . | . . . . Spaces Dug . | . . . . Terrain Destroyed 48 | . . . 48 Melee . | . . . . Projectile . | . . . . AOE 48 | . . . 48 Terrain Rammed . | . . . . Walls Destroyed . | . . . . Machines Disabled . | . . . . Actions | -11 -10 -10 -9 --------- Run | Yrd Mat Min Mat Total 1027 | 59 182 297 489 Wait 87 | . 8 57 22 Move 804 | 46 160 240 358 Hop . | . . . . Pick Up 30 | 8 7 . 15 Fast Attach . | . . . . Attach 20 | 5 3 . 12 Detach 1 | . 1 . . Swap 7 | . 1 . 6 Drop 3 | . 1 . 2 Fire 75 | . 1 . 74 Melee . | . . . . Ram . | . . . . Kick . | . . . . Crush . | . . . . Escape Stasis . | . . . . Rewire . | . . . . Trap . | . . . . Miscellaneous . | . . . . Route ------- -11/Scrapyard -10/Materials (discovered 2 exits: [*Min x2]) -10/Mines -9/Materials (discovered 2 exits: [*Min] / [*Sto]) History --------- Turn | Location | Event 3 | -11/Scrapyard | Discovered new exit (range 16) 64 | -11/Scrapyard | Entered Materials 64 | -10/Materials | Discovered new exit (range 14) 235 | -10/Materials | Discovered new exit (range 16) 303 | -10/Materials | Build established: Mutant 360 | -10/Materials | Entered Mines 552 | -10/Mines | Found a Scrap Suit stashed away for nefarious purposes 854 | -10/Mines | Discovered new exit (range 10) 873 | -10/Mines | Entered Materials 873 | -9/Materials | Evolved 2 slots: Propulsion x2 1094 | -9/Materials | Discovered new exit (range 15) 1377 | -9/Materials | Discovered new exit (range 15) 1474 | -9/Materials | Core integrity fell below 50% 1521 | -9/Materials | Lost 8 parts (2p2n1u3w) 1753 | -9/Materials | Core integrity fell below 20% 1848 | -9/Materials | Destroyed by Y-45 Defender with Beam Rifle Last Messages --------------- 01694_ K-01 Serf collects debris. 01706_ Terminal unresponsive. 01734_ W-16 Scout sends out distress signal. 01738_ W-16 Scout destroyed. 01752_ Critical hit (Burn: +37). 01754_ EM Pulse Gun destroyed. 01758_ Y-45 Defender destroyed. 01759_ Acquired 18 matter. 01760_ Y-45 Defender misfires. 01762_ Acquired 4 matter. 01763_ Aluminum Leg destroyed. 01764_ Y-45 Defender destroyed. 01765_ Acquired 4 matter. 01773_ Y-45 Defender destroyed. 01774_ Acquired 4 matter. 01787_ Acquired Heat Sink. 01807_ Acquired 10 matter. 01824_ Acquired Lgt. Ion Engine. 01826_ Acquired 10 matter. 01836_ Aluminum Leg destroyed. Map ----- +----------------------------------------------------+ | | | | | | | | | | | ?????????????????????????????????????????????????? | | ?????????????????????????????????????????????????? | | ?????????????????????????????????????????????????? | | ?????????????????????????????????????????????????? | | ?????????????????????????????????????????????????? | | ????????????????????????? ?????????????????????? | | ????????????????????????? ????????????????????? | | ????????????????????????? Y ????????????????????? | | ????????????????????????? ????????????????????? | | ????????????????????????? ????????????????????? | | ????????????????????????? #????????????????????? | | ????????????????????????? #????????????????????? | | ????????????????????????# #????????????????????? | | ????????????????????????# #????????????????????? | | ????????????????????????# #????????????????????? | | ????????????????????????# #????????????????????? | | ???????????????????????## ##???????????????????? | | ?????????????????####### ###########?????????? | | ?????????????????? # ????????? | | ?????????????????? """ # ????????? | | ???????????????????"T" # @ ????????? | | ??????????????????? # #####???????????????? | | ???????????????????? #!#####???????????????????? | | ???????????????????? #%#???????????????????????? | | ????????????????????#+## #???????????????????????? | | ????????????????????#%! #???????????????????????? | | ????????????????????#[! #???????????????????????? | | ????????????????????# = ####????????????????????? | | ????????????????????#= [ +????????????????????? | | ????????????????????#%=%#####????????????????????? | | ????????????????????+[!*#????????????????????????? | | ????????????????????# [ #?????????????? ???????? | | ???????????########## #?????????????# ???????? | | ???????????# # #???####??????# ???????? | | ???????????# """ # #?? #??????# ???????? | | ???????????# """ # #?? " #??????# #??????? | | ???????????# """ # #? """ #??????# #??????? | | ???????????# # #? "" #??????# #??????? | | ???????????# ""# # """ #??????# #??????# | | ???????????# T"# # "" #?????## #???? | | ???????????# ""# + """ #????? # #??# | | ?????# ????# # # """ #?????? #??# | | ?????# #########+## # """ #??????# #??# """ | | ?????# #? " #??????# #??# """ | | ?????# #? #??????# #??# """ | +----------------------------------------------------+ Best States ------------- Heat Dissipation 28 Energy Generation 10 Energy Capacity 250 Matter Stores 300 Matter Capacity 300 Sight Range 16 Robot Scan Range 14 Terrain Scan Density 10 Armor Coverage 225 Evasion (%) 55 Item Schematics ----------------- None Robot Schematics ------------------ None Fabricated ------------ Nothing Repaired ---------- Nothing Studied --------- None Alien Tech Used ----------------- None Achievements -------------- None Challenges ------------ None Game ------ Seed AbsorptionInsulationDatajack Manual? 0 Play Time 00:18:55 Cumulative 2.1 hours Start 2026.03.19 @ 02:35:15 End 2026.03.19 @ 02:55:19 Sessions 1 Manual Loads 0 Difficulty Rogue Special Mode None Game No. 4 Rogue 4 Adventurer 0 Explorer 0 Win Type - Total 0 Types 0/0/0/0/0/0/0/0/0/0 Lore% 0 Gallery% 4 Achievement% 5 Wizard Run 0 Options --------- Layout 1 ASCII 0 Keyboard 0 Movement Mouse Keybinds 0 Fullscreen 2 Font 24/Smallcaps Map View 50x35 Zoom Use 5% Tactical HUD 1 Map Filters NONE Filters NONE Steam 1 RUN: 865f5dd6-39f3-4855-aaef-3289d51fc622